bitfinex/quotes_BTCUSD_20250803
["timestamp","ask_amount","ask_price","bid_price","bid_amount"]
[1754218137453,3.64129878,114140.0,114130.0,0.2233]
[1754218137802,3.64129878,114140.0,114130.0,0.2253]
[1754218140847,3.64129878,114140.0,114130.0,0.2575405]
[1754218141555,3.64129878,114140.0,114130.0,0.2253]
[1754218144546,6.06488678,114140.0,114130.0,0.2253]
[1754218144763,6.06488678,114140.0,114130.0,0.2233]
[1754218145218,2.43181878,114140.0,114130.0,0.2263]
[1754218145458,2.43181878,114140.0,114130.0,0.2233]
[1754218145944,2.43181878,114140.0,114130.0,0.2263]
[1754218146362,2.43181878,114140.0,114130.0,0.2233]
[1754218146496,2.43181878,114140.0,114130.0,0.2556405]
[1754218146711,2.43181878,114140.0,114130.0,0.2596405]
[1754218157372,2.23424752,114140.0,114130.0,0.2596405]
[1754218157610,4.86066,114140.0,114130.0,0.2596405]
[1754218158841,4.87437914,114140.0,114130.0,0.2596405]
[1754218161775,4.87437914,114140.0,114130.0,0.2273]
[1754218179220,4.88261036,114140.0,114130.0,0.2273]
[1754218191286,4.86889122,114140.0,114130.0,0.2273]
[1754218200752,4.86066,114140.0,114130.0,0.2273]
[1754218200967,4.86888939,114140.0,114130.0,0.2273]
[1754218201178,4.86888939,114140.0,114130.0,0.2571052]
[1754218201589,4.86888939,114140.0,114130.0,0.2273]
[1754218205841,4.86888939,114140.0,114130.0,0.22526]
[1754218207343,4.86888939,114140.0,114130.0,0.0879]
[1754218207767,4.86888939,114140.0,114130.0,0.16696]
[1754218207985,4.86889024,114140.0,114130.0,0.16696]
[1754218208408,4.86889024,114140.0,114130.0,0.21751]
[1754218211044,4.86889024,114140.0,114130.0,0.21767]
[1754218211924,4.86889024,114140.0,114130.0,0.08259]
[1754218212142,4.91845614,114140.0,114130.0,0.14212]
[1754218212345,4.89242656,114140.0,114130.0,0.14212]
[1754218212978,4.89242656,114140.0,114130.0,0.13812]
[1754218213201,4.86889024,114140.0,114130.0,0.13512]
[1754218213422,4.86889024,114140.0,114130.0,0.13712]
[1754218213934,4.86889024,114140.0,114130.0,0.00204]
[1754218214144,4.86889024,114140.0,114130.0,0.13712]
[1754218215862,4.86889024,114140.0,114130.0,0.13708]
[1754218216278,4.86889024,114140.0,114130.0,0.13704]
[1754218218506,4.86889024,114140.0,114130.0,0.137]
[1754218222247,4.86888267,114140.0,114130.0,0.137]
[1754218223798,4.65178267,114140.0,114130.0,0.137]
[1754218224817,4.65178267,114140.0,114130.0,0.13688]
[1754218227321,4.65178267,114140.0,114130.0,0.18743]
[1754218228593,4.65178267,114140.0,114130.0,0.05259]
[1754218228868,4.47122474,114140.0,114130.0,0.18731]
[1754218229073,4.471224,114140.0,114130.0,0.18731]
[1754218230320,4.48494374,114140.0,114130.0,0.18731]
[1754218230534,4.48494374,114140.0,114130.0,0.13676]
[1754218234013,4.48494374,114140.0,114130.0,0.00204]
[1754218234217,4.48494374,114140.0,114130.0,0.13668]
[1754218235003,4.48494374,114140.0,114130.0,0.18941]
[1754218235870,4.48494374,114140.0,114130.0,0.13668]
[1754218236502,4.48494374,114140.0,114130.0,0.18941]
[1754218237729,4.471224,114140.0,114130.0,0.18941]
[1754218239014,4.471224,114140.0,114130.0,0.13668]
[1754218239331,4.48767919,114140.0,114130.0,0.13668]
[1754218240640,4.50139927,114140.0,114130.0,0.13652]
[1754218240857,4.5096275,114140.0,114130.0,0.13652]
[1754218241124,4.5359845,114140.0,114130.0,0.13652]
[1754218242247,4.53598628,114140.0,114130.0,0.13652]
[1754218245251,4.52226427,114140.0,114130.0,0.13652]
[1754218246729,4.52226427,114140.0,114130.0,0.13452]
[1754218247569,4.52226427,114140.0,114130.0,0.18825]
[1754218247981,4.52226228,114140.0,114130.0,0.18825]
[1754218248191,4.53598286,114140.0,114130.0,0.18825]
[1754218250581,4.87598286,114140.0,114130.0,0.2175992]
[1754218250816,4.87598286,114140.0,114130.0,0.19346]
[1754218251032,4.87597873,114140.0,114130.0,0.19346]
[1754218252415,4.87597873,114140.0,114130.0,0.19138]
[1754218258356,4.87597873,114140.0,114130.0,0.19346]
[1754218265493,4.87597873,114140.0,114130.0,0.19138]
[1754218267145,4.86775249,114140.0,114130.0,0.19138]
[1754218267356,4.87598088,114140.0,114130.0,0.19138]
[1754218272525,4.87268088,114140.0,114130.0,0.19138]
[1754218274576,4.68857688,114140.0,114130.0,0.19138]
[1754218279861,4.68857688,114140.0,114130.0,0.05377]
[1754218280072,4.82698341,114140.0,114130.0,0.13524]
[1754218280274,4.94746283,114140.0,114130.0,0.00104]
[1754218280706,4.96642387,114140.0,114130.0,0.00104]
[1754218281131,4.96642387,114140.0,114130.0,4e-05]
[1754218282183,4.94039429,114140.0,114130.0,4e-05]
[1754218283172,4.95411627,114140.0,114130.0,4e-05]
[1754218287044,4.95511627,114140.0,114130.0,4e-05]
[1754218289446,4.94139429,114140.0,114130.0,4e-05]
[1754218290098,4.94138264,114140.0,114130.0,4e-05]
[1754218291411,4.91502564,114140.0,114130.0,4e-05]
[1754218292322,4.92874763,114140.0,114130.0,4e-05]
[1754218298797,4.92872513,114140.0,114130.0,4e-05]
[1754218299235,4.92872513,114140.0,114130.0,0.05114]
[1754218299453,4.83988757,114140.0,114130.0,0.05114]
[1754218299663,4.83988853,114140.0,114130.0,0.05114]
[1754218300277,4.81524242,114140.0,114130.0,0.05114]
[1754218300462,4.83988971,114140.0,114130.0,0.05114]
[1754218301114,4.81635032,114140.0,114130.0,0.05114]
[1754218303720,4.80262833,114140.0,114130.0,0.05114]
[1754218304649,4.80262833,114140.0,114130.0,0.05414]
[1754218304850,4.80263415,114140.0,114130.0,0.05414]
[1754218305274,4.89147171,114140.0,114130.0,0.05414]
[1754218306345,4.9051935,114140.0,114130.0,0.05414]
[1754218306521,4.5651935,114140.0,114130.0,0.05414]
[1754218306747,4.47635594,114140.0,114130.0,0.05414]
[1754218306891,4.34215594,114140.0,114130.0,0.0562]
[1754218307091,4.47607594,114140.0,114130.0,0.0562]
[1754218307297,4.47606151,114140.0,114130.0,0.0562]
[1754218307708,4.44340574,114140.0,114130.0,0.0562]
[1754218307975,4.46235232,114140.0,114130.0,0.0562]
[1754218308418,4.80235231,114140.0,114130.0,0.0562]
[1754218310064,4.61458731,114140.0,114130.0,0.0562]
[1754218310427,4.6063654,114140.0,114130.0,0.0562]
[1754218310629,4.61459416,114140.0,114130.0,0.0562]
[1754218311959,4.62831576,114140.0,114130.0,0.0562]
[1754218312555,4.62831734,114140.0,114130.0,0.0562]
[1754218313420,4.62833403,114140.0,114130.0,0.0562]
[1754218315363,4.62821403,114140.0,114130.0,0.0562]
[1754218324703,4.62821403,114140.0,114130.0,0.05571549]
[1754218325460,4.62820935,114140.0,114130.0,0.05571549]
[1754218330950,4.71704691,114140.0,114130.0,0.05571549]
[1754218332743,4.62820935,114140.0,114130.0,0.05571549]
[1754218338255,4.62820935,114140.0,114130.0,0.05575549]
[1754218352645,4.61997901,114140.0,114130.0,0.05575549]
[1754218352786,4.62821196,114140.0,114130.0,0.05575549]
[1754218355564,4.62821221,114140.0,114130.0,0.05575549]
[1754218356982,4.71704977,114140.0,114130.0,0.05575549]
[1754218358547,4.71707319,114140.0,114130.0,0.05575549]
[1754218360240,4.62823563,114140.0,114130.0,0.05575549]
[1754218367390,4.62824672,114140.0,114130.0,0.05575549]
[1754218373723,4.62824672,114140.0,114130.0,0.05069549]
[1754218377268,4.62824672,114140.0,114130.0,0.05379549]
[1754218378839,4.61452512,114140.0,114130.0,0.05379549]
[1754218381267,4.61436512,114140.0,114130.0,0.05379549]
[1754218381675,4.71692438,114140.0,114130.0,0.05379549]
[1754218384900,4.70320268,114140.0,114130.0,0.05379549]
[1754218385113,4.70320272,114140.0,114130.0,0.05379549]
[1754218386630,4.70320302,114140.0,114130.0,0.05379549]
[1754218388832,4.71692472,114140.0,114130.0,0.05379549]
[1754218389054,4.62808716,114140.0,114130.0,0.05379549]
[1754218394648,4.62808767,114140.0,114130.0,0.05379549]
[1754218395267,4.62808793,114140.0,114130.0,0.05379549]
[1754218396969,4.61436623,114140.0,114130.0,0.05379549]
[1754218398255,4.63790562,114140.0,114130.0,0.05069549]
[1754218399104,4.61436623,114140.0,114130.0,0.05069549]
[1754218399520,4.70320379,114140.0,114130.0,4e-05]
[1754218399778,4.71692553,114140.0,114130.0,4e-05]
[1754218399937,4.62808797,114140.0,114130.0,4e-05]
[1754218400512,4.62808797,114140.0,114130.0,0.05189]
[1754218405292,4.6280882,114140.0,114130.0,0.05189]
[1754218406511,4.61436646,114140.0,114130.0,0.05496]
[1754218406918,4.61436689,114140.0,114130.0,0.05496]
[1754218408553,4.70320445,114140.0,114130.0,0.05496]
[1754218408966,4.71692616,114140.0,114130.0,0.05496]
[1754218412193,4.6280886,114140.0,114130.0,0.05496]
[1754218415554,4.61436689,114140.0,114130.0,0.05496]
[1754218416232,4.27336689,114140.0,114130.0,0.05496]
[1754218417053,4.01918389,114140.0,114130.0,0.05496]
[1754218418187,4.01918389,114140.0,114130.0,0.05691]
[1754218418433,4.03290604,114140.0,114130.0,0.05691]
[1754218419100,4.03290604,114140.0,114130.0,0.05419046]
[1754218419978,3.89682882,114140.0,114130.0,0.05419046]
[1754218420188,3.70206301,114140.0,114130.0,0.05419046]
[1754218421332,3.83562303,114140.0,114130.0,0.05419046]
[1754218423089,3.83562304,114140.0,114130.0,0.05419046]
[1754218424204,3.83562305,114140.0,114130.0,0.05419046]
[1754218427702,7.46869105,114140.0,114130.0,0.05419046]
[1754218429146,3.83562305,114140.0,114130.0,0.05419046]
[1754218430619,3.83562305,114140.0,114130.0,0.05423046]
[1754218431681,3.82190135,114140.0,114130.0,0.05423046]
[1754218434479,3.83562305,114140.0,114130.0,0.05423046]
[1754218435939,3.82190136,114140.0,114130.0,0.05423046]
[1754218436899,3.91073892,114140.0,114130.0,0.05423046]
[1754218438842,3.9244608,114140.0,114130.0,0.05423046]
[1754218440785,3.83558324,114140.0,114130.0,0.05423046]
[1754218441001,3.83558322,114140.0,114130.0,0.05423046]
[1754218441863,3.70206322,114140.0,114130.0,0.05423046]
[1754218442079,3.83558322,114140.0,114130.0,0.05423046]
[1754218442990,3.70206322,114140.0,114130.0,0.05423046]
[1754218443245,3.92442078,114140.0,114130.0,0.05423046]
[1754218443479,3.92438078,114140.0,114130.0,0.05423046]
[1754218443957,3.79090078,114140.0,114130.0,0.05423046]
[1754218444230,3.92438078,114140.0,114130.0,0.05423046]
[1754218444700,3.83554322,114140.0,114130.0,0.05423046]
[1754218446496,3.83554316,114140.0,114130.0,0.05423046]
[1754218449213,3.8355431,114140.0,114130.0,0.05423046]
[1754218451693,3.82182122,114140.0,114130.0,0.05423046]
[1754218454553,3.83554327,114140.0,114130.0,0.05423046]
[1754218455001,3.83554334,114140.0,114130.0,0.05423046]
[1754218461142,3.9243809,114140.0,114130.0,0.05423046]
[1754218462444,3.94335122,114140.0,114130.0,0.05423046]
[1754218463645,3.94335038,114140.0,114130.0,0.05423046]
[1754218464248,3.85451282,114140.0,114130.0,0.05423046]
[1754218467076,3.84079077,114140.0,114130.0,0.05423046]
[1754218467960,3.84079075,114140.0,114130.0,0.05423046]
[1754218468372,3.70731075,114140.0,114130.0,0.05423046]
[1754218468598,3.84075036,114140.0,114130.0,0.05423046]
[1754218470114,3.85447223,114140.0,114130.0,0.05423046]
[1754218470325,3.84075036,114140.0,114130.0,0.05423046]
[1754218470533,3.85447223,114140.0,114130.0,0.05423046]
[1754218471842,3.85447223,114140.0,114130.0,0.01623046]
[1754218472246,3.84623816,114140.0,114130.0,0.01623046]
[1754218472615,3.85446981,114140.0,114130.0,0.01623046]
[1754218477674,3.94330737,114140.0,114130.0,0.01623046]
[1754218478326,3.85446981,114140.0,114130.0,0.01623046]
[1754218478973,3.85446981,114140.0,114130.0,0.00323046]
[1754218479196,3.85648981,114140.0,114130.0,0.00323046]
[1754218480269,3.84825651,114140.0,114130.0,0.00323046]
[1754218480476,3.85648937,114140.0,114130.0,0.00323046]
[1754218481121,3.85648937,114140.0,114130.0,0.05199046]
[1754218481355,3.85648931,114140.0,114130.0,0.05199046]
[1754218482453,3.72102931,114140.0,114130.0,0.05199046]
[1754218482668,3.85442931,114140.0,114130.0,0.05199046]
[1754218484271,3.854429,114140.0,114130.0,0.05199046]
[1754218486023,3.856449,114140.0,114130.0,0.04099046]
[1754218486279,3.856449,114140.0,114130.0,0.04305046]
[1754218486910,3.85644807,114140.0,114130.0,0.04305046]
[1754218488203,3.72304807,114140.0,114130.0,0.04305046]
[1754218488426,3.85644807,114140.0,114130.0,0.04305046]
[1754218488881,3.85644807,114140.0,114130.0,0.04617046]
[1754218490289,3.85442807,114140.0,114130.0,0.04617046]
[1754218490501,3.8407062,114140.0,114130.0,0.04617046]
[1754218491194,3.85442774,114140.0,114130.0,0.04617046]
[1754218492446,3.72102774,114140.0,114130.0,0.04617046]
[1754218492638,3.70205783,114140.0,114130.0,0.04617046]
[1754218493236,3.70205783,114140.0,114130.0,0.02817046]
[1754218495367,3.68833629,114140.0,114130.0,0.02817046]
[1754218498237,3.70205709,114140.0,114130.0,0.02817046]
[1754218500305,3.663639,114130.0,114120.0,0.08827944]
[1754218500591,3.67187143,114130.0,114120.0,0.08827944]
[1754218500823,3.67187143,114130.0,114120.0,0.09025944]
[1754218501416,3.46410343,114130.0,114120.0,0.09025944]
[1754218502087,3.46410343,114130.0,114120.0,0.11525944]
[1754218502285,3.46410343,114130.0,114120.0,0.17122944]
[1754218502712,3.46410343,114130.0,114120.0,0.17222944]
[1754218504913,3.46410343,114130.0,114120.0,0.30554944]
[1754218506267,3.46409096,114130.0,114120.0,0.30554944]
[1754218507199,3.46409096,114130.0,114120.0,0.26154944]
[1754218507637,3.46409096,114130.0,114120.0,0.25874944]
[1754218509142,3.46409096,114130.0,114120.0,0.28490438]
[1754218509996,3.46409096,114130.0,114120.0,0.25874944]
[1754218513451,3.46409096,114130.0,114120.0,0.25878944]
[1754218514430,3.46409096,114130.0,114120.0,0.21578944]
[1754218516310,3.46702096,114130.0,114120.0,0.21578944]
[1754218517140,3.46906096,114130.0,114120.0,0.21578944]
[1754218517340,3.46409096,114130.0,114120.0,0.21578944]
[1754218517988,3.46702096,114130.0,114120.0,0.21578944]
[1754218518206,3.46906096,114130.0,114120.0,0.21578944]
[1754218519463,3.48278183,114130.0,114120.0,0.21578944]
[1754218519711,3.47781183,114130.0,114120.0,0.21578944]
[1754218520970,3.47781183,114130.0,114120.0,0.23764838]
[1754218522306,3.47781183,114130.0,114120.0,0.21578944]
[1754218522554,3.48074183,114130.0,114120.0,0.18378944]
[1754218522767,3.48074183,114130.0,114120.0,0.21145344]
[1754218524767,3.48278183,114130.0,114120.0,0.21145344]
[1754218525817,3.48278984,114130.0,114120.0,0.21145344]
[1754218526786,3.48278984,114130.0,114120.0,0.21014344]
[1754218527066,3.53607984,114130.0,114120.0,0.21014344]
[1754218529553,3.53607984,114130.0,114120.0,0.160714]
[1754218531965,3.53607984,114130.0,114120.0,0.16290467]
[1754218534857,3.53607821,114130.0,114120.0,0.16290467]
[1754218536554,3.53607821,114130.0,114120.0,0.12990467]
[1754218537382,3.53607821,114130.0,114120.0,0.14784414]
[1754218537822,3.53607821,114130.0,114120.0,0.19733414]
[1754218538049,3.53607821,114130.0,114120.0,0.19514347]
[1754218538932,3.52785187,114130.0,114120.0,0.14565347]
[1754218539135,3.536078,114130.0,114120.0,0.14565347]
[1754218539335,3.365929,114130.0,114120.0,0.14565347]
[1754218539559,3.365929,114130.0,114120.0,0.14784414]
[1754218543629,3.365929,114130.0,114120.0,0.11984414]
[1754218544706,0.080207,114130.0,114120.0,0.11984414]
[1754218546623,0.08020849,114130.0,114120.0,0.11984414]
[1754218548905,0.00197,114130.0,114120.0,0.16933414]
[1754218549112,0.01569074,114130.0,114120.0,0.16933414]
[1754218549323,0.00197,114130.0,114120.0,0.16933414]
[1754218549979,0.00197,114130.0,114120.0,0.17137414]
[1754218550761,0.00494,114130.0,114120.0,0.14537414]
[1754218556063,0.00197,114130.0,114120.0,0.14537414]
[1754218557959,0.00197,114130.0,114120.0,0.12037414]
[1754218558164,0.00197,114130.0,114120.0,0.11818347]
[1754218560742,0.01020103,114130.0,114120.0,0.11818347]
[1754218564821,0.01020103,114130.0,114120.0,0.22842347]
[1754218566350,0.01020167,114130.0,114120.0,0.22842347]
[1754218568681,0.01020167,114130.0,114120.0,0.23142347]
[1754218572027,0.01020167,114130.0,114120.0,0.21056582]
[1754218572223,0.01020167,114130.0,114120.0,0.23691982]
[1754218572643,0.01020167,114130.0,114120.0,0.23695982]
[1754218573424,3.285722,114170.0,114120.0,0.23695982]
[1754218573624,3.285722,114160.0,114130.0,0.05214]
[1754218573877,3.287792,114140.0,114130.0,0.18538]
[1754218575168,3.31390554,114140.0,114130.0,0.18538]
[1754218579101,3.31390554,114140.0,114130.0,0.13324]
[1754218579102,3.36727554,114140.0,114130.0,0.13324]
[1754218582656,3.36727554,114140.0,114130.0,0.18838]
[1754218585363,3.37550759,114140.0,114130.0,0.18838]
[1754218585964,3.71550759,114140.0,114130.0,0.18838]
[1754218586169,3.71550759,114140.0,114130.0,0.14438]
[1754218586369,3.66213759,114140.0,114130.0,0.14641]
[1754218587164,3.66213759,114140.0,114130.0,0.14438]
[1754218587165,3.71550759,114140.0,114130.0,0.14438]
[1754218588238,3.71550759,114140.0,114130.0,0.14138]
[1754218593291,3.71550759,114140.0,114130.0,0.09738]
[1754218594610,3.66204759,114140.0,114130.0,0.10264]
[1754218595031,3.66204606,114140.0,114130.0,0.10264]
[1754218595894,3.66204606,114140.0,114130.0,0.128994]
[1754218596861,3.66006606,114140.0,114130.0,0.128994]
[1754218597265,3.66006606,114140.0,114130.0,0.13118448]
[1754218600601,3.66006606,114140.0,114130.0,0.11018448]
[1754218600737,3.66006397,114140.0,114130.0,0.11018448]
[1754218606168,3.63395043,114140.0,114130.0,0.11018448]
[1754218606685,3.63394976,114140.0,114130.0,0.11018448]
[1754218606887,3.63592976,114140.0,114130.0,0.11018448]
[1754218607614,3.63592976,114140.0,114130.0,0.08918448]
[1754218611349,3.29394976,114140.0,114130.0,0.08918448]
[1754218611752,3.63394976,114140.0,114130.0,0.08918448]
[1754218612052,3.63592976,114140.0,114130.0,0.08918448]
[1754218614591,3.63592976,114140.0,114130.0,0.20334448]
[1754218614952,3.68819976,114140.0,114130.0,0.201154]
[1754218617820,3.679972,114140.0,114130.0,0.201154]
[1754218618832,3.68819689,114140.0,114130.0,0.201154]
[1754218619275,3.679972,114140.0,114130.0,0.201154]
[1754218623869,3.679972,114140.0,114130.0,0.171154]
[1754218624052,3.679972,114140.0,114130.0,0.16796448]
[1754218625709,3.679972,114140.0,114130.0,0.16896448]
[1754218625869,3.679972,114140.0,114130.0,0.16796448]
[1754218626273,3.679972,114140.0,114130.0,0.16996448]
[1754218627762,3.444133,114140.0,114130.0,0.16996448]
[1754218627985,3.444133,114140.0,114130.0,0.19952213]
[1754218628157,3.444133,114140.0,114130.0,0.19733165]
[1754218631162,3.447203,114140.0,114130.0,0.15333165]
[1754218631358,3.447203,114140.0,114130.0,0.17968365]
[1754218632255,3.45542775,114140.0,114130.0,0.17968365]
[1754218634659,3.46914806,114140.0,114130.0,0.17968365]
[1754218635650,3.46914806,114140.0,114130.0,0.150126]
[1754218637538,3.46914901,114140.0,114130.0,0.150126]
[1754218638184,3.46914901,114140.0,114130.0,0.106126]
[1754218645233,3.46914901,114140.0,114130.0,0.062126]
[1754218646209,3.46915399,114140.0,114130.0,0.062126]
[1754218646412,3.46915399,114140.0,114130.0,0.06431648]
[1754218647451,0.36195099,114140.0,114130.0,0.14059233]
[1754218650691,0.41579099,114140.0,114130.0,0.14059233]
[1754218651331,0.41794099,114140.0,114130.0,0.14059233]
[1754218652337,0.41794099,114140.0,114130.0,0.22967233]
[1754218652552,0.41794099,114140.0,114130.0,0.22748185]
[1754218656013,0.41794099,114140.0,114130.0,0.208196]
[1754218656610,0.42113099,114140.0,114130.0,0.208196]
[1754218657668,0.42113071,114140.0,114130.0,0.208196]
[1754218657886,0.08113071,114140.0,114130.0,0.208196]
[1754218659622,0.02195071,114140.0,114130.0,0.13308]
[1754218659838,0.02195071,114140.0,114130.0,0.15790668]
[1754218660592,0.07579071,114140.0,114130.0,0.15790668]
[1754218660820,0.08113071,114140.0,114130.0,0.15790668]
[1754218661259,0.08113038,114140.0,114130.0,0.15790668]
[1754218661904,0.08113038,114140.0,114130.0,0.21142668]
[1754218662137,0.08113029,114140.0,114130.0,0.2092362]
[1754218662353,0.08113028,114140.0,114130.0,0.2092362]
[1754218662996,0.07289967,114140.0,114130.0,0.2092362]
[1754218663436,0.07289967,114140.0,114130.0,0.2092762]
[1754218664086,0.08113027,114140.0,114130.0,0.2092762]
[1754218664502,0.07794027,114140.0,114130.0,0.2092762]
[1754218664615,0.06970967,114140.0,114130.0,0.2092762]
[1754218666142,0.07794025,114140.0,114130.0,0.2092762]
[1754218666683,0.07794025,114140.0,114130.0,0.1652762]
[1754218666888,0.07794025,114140.0,114130.0,0.16746668]
[1754218667796,0.07794015,114140.0,114130.0,0.16746668]
[1754218667996,0.08113015,114140.0,114130.0,0.16746668]
[1754218668749,0.08113015,114140.0,114130.0,0.11394668]
[1754218672021,0.21208443,114170.0,114130.0,0.17070668]
[1754218672022,3.049883,114160.0,114130.0,0.17070668]
[1754218672232,0.00215,114140.0,114130.0,0.17070668]
[1754218672816,0.0258899,114150.0,114130.0,0.17070668]
[1754218673024,3.049883,114140.0,114130.0,0.17070668]
[1754218673231,3.049883,114150.0,114130.0,0.17070668]
[1754218673767,3.049883,114150.0,114130.0,0.14370668]
[1754218674188,3.049883,114140.0,114130.0,0.14370668]
[1754218674364,3.049883,114140.0,114130.0,0.14470668]
[1754218675947,3.049883,114140.0,114130.0,0.14370668]
[1754218676356,3.049883,114140.0,114130.0,0.14670668]
[1754218677301,3.105873,114140.0,114130.0,0.14670668]
[1754218677502,0.02981447,114150.0,114130.0,0.14670668]
[1754218677708,3.049883,114140.0,114130.0,0.14670668]
[1754218678324,3.049883,114140.0,114130.0,0.14570668]
[1754218679346,3.049883,114140.0,114130.0,0.14670668]
[1754218680549,3.052023,114140.0,114130.0,0.14670668]
[1754218680750,0.00214,114140.0,114130.0,0.12170668]
[1754218680976,0.057,114140.0,114130.0,0.12170668]
[1754218684110,0.06523094,114140.0,114130.0,0.12170668]
[1754218684827,0.07895016,114140.0,114130.0,0.12170668]
[1754218685000,0.06523094,114140.0,114130.0,0.12170668]
[1754218686185,0.01037094,114140.0,114130.0,0.12170668]
[1754218688010,0.01037094,114140.0,114130.0,0.09870668]
[1754218694967,0.01037094,114140.0,114130.0,0.21170668]
[1754218695138,0.01037094,114140.0,114130.0,0.2115462]
[1754218702112,0.01037094,114140.0,114130.0,0.19483]
[1754218702620,0.01037094,114140.0,114130.0,0.16383]
[1754218702621,0.06840094,114140.0,114130.0,0.16383]
[1754218702827,0.06840094,114140.0,114130.0,0.16602048]
[1754218707241,0.00823097,114140.0,114130.0,0.16917048]
[1754218707411,0.00823097,114140.0,114130.0,0.19579803]
[1754218707652,0.00823097,114140.0,114130.0,0.21995955]
[1754218710249,0.00823097,114140.0,114130.0,0.18895955]
[1754218711395,3.049883,114170.0,114130.0,0.24418955]
[1754218711594,0.01371919,114150.0,114140.0,0.05523]
[1754218711919,3.051593,114150.0,114140.0,0.05523]
[1754218712114,3.051593,114150.0,114140.0,0.081582]
[1754218712325,3.07830164,114150.0,114140.0,0.081582]
[1754218712734,3.07830164,114150.0,114140.0,0.10579796]
[1754218712921,3.07830164,114150.0,114140.0,0.10884796]
[1754218714594,3.049883,114150.0,114140.0,0.086652]
[1754218715436,3.051593,114150.0,114140.0,0.086652]
[1754218717430,3.051593,114150.0,114140.0,0.066652]
[1754218718068,3.06531176,114150.0,114140.0,0.066652]
[1754218723364,3.07354283,114150.0,114140.0,0.066652]
[1754218724185,3.07354283,114150.0,114140.0,0.08905996]
[1754218724543,3.12689283,114150.0,114140.0,0.06005996]
[1754218726135,3.12689284,114150.0,114140.0,0.06005996]
[1754218727919,3.12689284,114150.0,114140.0,0.037652]
[1754218729786,3.12689284,114150.0,114140.0,0.037692]
[1754218731148,3.12689284,114150.0,114140.0,0.031462]
[1754218731553,3.12689284,114150.0,114140.0,0.008462]
[1754218732016,3.12689284,114150.0,114140.0,0.00309]
[1754218733553,3.12689284,114150.0,114140.0,0.07380198]
[1754218734073,3.12689284,114150.0,114140.0,0.10242028]
[1754218735049,3.12689284,114150.0,114140.0,0.07380198]
[1754218738751,3.12689284,114150.0,114140.0,0.05380198]
[1754218741221,3.12689288,114150.0,114140.0,0.05380198]
[1754218744860,3.12689288,114150.0,114140.0,0.10881198]
[1754218745325,3.12689288,114150.0,114140.0,0.11092198]
[1754218745595,3.12689288,114150.0,114140.0,0.11408198]
[1754218745798,3.12689288,114150.0,114140.0,0.09208198]
[1754218748366,3.12694049,114150.0,114140.0,0.09208198]
[1754218749560,3.12694029,114150.0,114140.0,0.08892198]
[1754218750711,3.07359029,114150.0,114140.0,0.11700528]
[1754218751631,3.07359029,114150.0,114140.0,0.09208198]
[1754218752895,3.07359029,114150.0,114140.0,0.05108198]
[1754218753215,0.02370729,114150.0,114140.0,0.05108198]
[1754218753427,0.02199729,114150.0,114140.0,0.05108198]
[1754218755033,0.07991729,114150.0,114140.0,0.05108198]
[1754218755160,0.07991729,114150.0,114140.0,0.07190528]
[1754218756212,0.07991729,114150.0,114140.0,0.20482528]
[1754218756446,0.08205729,114150.0,114140.0,0.20482528]
[1754218757549,0.02413729,114150.0,114140.0,0.20482528]
[1754218757821,0.02199729,114150.0,114140.0,0.20482528]
[1754218758495,0.08205729,114150.0,114140.0,0.20482528]
[1754218760003,0.08205729,114150.0,114140.0,0.1590133]
[1754218760204,0.08205729,114150.0,114140.0,0.1537433]
[1754218763254,3.049883,114160.0,114140.0,0.1932]
[1754218763536,3.06634348,114160.0,114140.0,0.1932]
[1754218763775,3.049883,114150.0,114140.0,0.219551]
[1754218768296,3.049883,114150.0,114140.0,0.193551]
[1754218775315,0.00823003,114150.0,114140.0,0.193551]
[1754218775537,0.00823003,114150.0,114140.0,0.1899061]
[1754218776351,0.08883041,114170.0,114140.0,0.1899061]
[1754218776352,0.02078756,114170.0,114140.0,0.1899061]
[1754218776568,3.049883,114160.0,114140.0,0.1899061]
[1754218776774,3.06634317,114160.0,114140.0,0.1899061]
[1754218776992,3.049883,114150.0,114140.0,0.1899061]
[1754218777206,3.049883,114170.0,114140.0,0.1899061]
[1754218777431,3.06634332,114170.0,114140.0,0.1899061]
[1754218777621,3.049883,114160.0,114140.0,0.1899061]
[1754218777841,3.06834332,114160.0,114140.0,0.1899061]
[1754218778063,3.049883,114150.0,114140.0,0.1899061]
[1754218782506,3.049883,114150.0,114140.0,0.1679061]
[1754218783897,3.049883,114150.0,114140.0,0.148551]
[1754218788488,0.00823071,114150.0,114140.0,0.084521]
[1754218788771,0.00823071,114150.0,114140.0,0.214241]
[1754218789861,0.00823071,114150.0,114140.0,0.192401]
[1754218793016,0.00823071,114150.0,114140.0,0.194551]
[1754218794928,0.00823071,114150.0,114140.0,0.2140061]
[1754218796587,0.00823071,114150.0,114140.0,0.194551]
[1754218796920,0.00823071,114150.0,114140.0,0.171551]
[1754218801703,0.00823071,114150.0,114140.0,0.171591]
[1754218803923,0.00823071,114150.0,114140.0,0.150591]
[1754218806070,0.00823071,114150.0,114140.0,0.208621]
[1754218806458,0.20825204,114190.0,114140.0,0.208621]
[1754218806708,3.049883,114180.0,114150.0,0.00324]
[1754218807011,3.049883,114170.0,114150.0,0.00324]
[1754218807219,3.049883,114160.0,114150.0,0.00324]
[1754218807332,3.06634318,114160.0,114150.0,0.00324]
[1754218808439,3.12066318,114160.0,114150.0,0.00324]
[1754218808659,3.12266318,114160.0,114150.0,0.00324]
[1754218809563,3.13638158,114160.0,114150.0,0.00324]
[1754218809792,3.13638158,114160.0,114150.0,0.00328]
[1754218810209,3.13738158,114160.0,114150.0,0.00328]
[1754218810418,3.16316147,114160.0,114150.0,0.00328]
[1754218811057,3.16515147,114160.0,114140.0,0.173591]
[1754218811268,3.049883,114150.0,114140.0,0.1909501]
[1754218811481,3.049883,114150.0,114140.0,0.2192821]
[1754218813210,3.049883,114150.0,114140.0,0.2225221]
[1754218813884,2.86411,114150.0,114140.0,0.2225221]
[1754218815281,2.86308487,114150.0,114140.0,0.2225221]
[1754218818190,2.86308487,114150.0,114140.0,0.1895221]
[1754218818609,0.00823094,114150.0,114140.0,0.1895221]
[1754218823701,0.09238519,114180.0,114140.0,0.1895221]
[1754218823908,2.863085,114170.0,114140.0,0.1282521]
[1754218824094,2.87954523,114170.0,114150.0,0.06127]
[1754218824336,2.662717,114160.0,114150.0,0.06127]
[1754218824557,2.67917723,114160.0,114150.0,0.087621]
[1754218825467,2.67917723,114160.0,114150.0,0.070621]
[1754218826629,2.67917628,114160.0,114150.0,0.070621]
[1754218826877,2.68217628,114160.0,114150.0,0.070621]
[1754218827099,2.68217628,114160.0,114150.0,0.072601]
[1754218830400,2.68217628,114160.0,114150.0,0.072641]
[1754218833084,2.68217628,114160.0,114150.0,0.063641]